Workbook

Sheet Income
A1: Manchester County Bridge Association | I1: Accounts 2015 - 2016
A3: Income | Q3: (March) | R3: (July)
K4: League & | P4: Merville | Q4: Pairs | R4: Teams | U4: Summer | V4: Autumn | Y4: Players Progress | Z4: EBU delegate | AA4: Outstanding | AB4: Prior Year | AC4: Loan from
F5: EBU | G5: EBU P2P | H5: EBU P2P | I5: MCBA | J5: EBU | K5: Cup | L5: Higson | M5: Over | N5: EBU | O5: Gazette | P5: Goldstone | Q5: Green | R5: Green | S5: Manchester | T5: Ben | U5: Intermediate | V5: Intermediate | W5: Cantor Cup | X5: Newcomers | Y5: and Kevin Comrie | Z5: Expenses | AA5: from previous | AB5: Corrections | AC5: Treasurer | AD5: Totals
A6: Date | B6: Reference | C6: Details | D6: Cash | E6: Bank | F6: P2P (clubs) | G6: League | H6: Cup | I6: Affiliates | J6: League | K6: >4 players | L6: Cup & Plate | M6: Payment | N6: BFA | O6: Trophy | P6: Trophy | Q6: Points | R6: Points | S6: Congress | T6: Franks | U6: Pairs | V6: Pairs | X6: League | Y6: Cups | AA6: Year
C8: B/Fwd Balance | E8: 3826.78 | AD8: 3826.78
A9: Sundry Debtors as at 31st March 2015
B10: League Overpayments (creditor) b/f £54 | AA10: 54
B11: EBU P2P debtor b/f £116.20 | AA11: -116.2
C14: EBU P2P March | E14: 116.2 | AA14: 116.2 | AD14: =SUM(F14:AC14) -> 116.2
C15: EBU P2P April | E15: 279.51 | F15: 279.51 | AD15: =SUM(F15:AC15) -> 279.51
C17: Davenport - 2 extra players | E17: 10 | AB17: 10 | AD17: 10
C19: City Aces - Extra Player & Affiliation fee | E19: 11 | AB19: 11 | AD19: 11
C21: EBU P2P May | E21: 105.49 | F21: 105.49 | AD21: 105.49
C22: EBU BFL? | E22: 63 | N22: 63 | AD22: 63
B24: 10175 | C24: Summer Intermediate Pairs | E24: 294 | U24: 294 | AD24: 294
C25: EBU P2P June | E25: 291.83 | F25: 291.83 | AD25: 291.83
C27: League-Leaders with Attitude | E27: 40 | G27: 5 | H27: 5 | J27: 20 | L27: 10 | AD27: 40
B28: 100752 | C28: GreenPointed Swiss teams-July | E28: 1595 | AD28: 0
C29: 100 Entries @ £18 | R29: 1800 | AD29: 1800
C30: Refreshments | R30: -47 | AD30: -47
C31: Prizes-Wine | R31: -48 | AD31: -48
C32: Directors Lunch | R32: -10 | AD32: -10
C33: Advertisning-printing & Postage | R33: -20 | AD33: -20
C34: Extra Prize | R34: -80 | AD34: -80
C35: Hall Hire £168 pd & charged to prior year | AD35: 0
B36: 100753 | C36: Prize Returned | E36: 40 | R36: 40 | AD36: 40
B37: 100754 | C37: League-Isolated Menaces | E37: 40 | G37: 5 | H37: 5 | J37: 20 | L37: 10 | AD37: 40
C38: League-Trafford Tigers | E38: 30 | G38: 5 | J38: 20 | K38: 5 | AD38: 30
C39: League-City Aces | E39: 69 | G39: 5 | H39: 5 | J39: 20 | K39: 5 | L39: 10 | M39: 24 | AD39: 69
C40: League-Tempo | E40: 55 | G40: 5 | H40: 5 | J40: 20 | K40: 15 | L40: 10 | AD40: 55
C41: League-New Connections | E41: 40 | G41: 5 | H41: 5 | J41: 20 | L41: 10 | AD41: 40
C42: League-Inverted Minors | E42: 50 | G42: 5 | H42: 5 | J42: 20 | K42: 10 | L42: 10 | AD42: 50
C43: League-Red Bull | E43: 40 | G43: 5 | H43: 5 | J43: 20 | L43: 10 | AD43: 40
C44: League-Adlan | E44: 25 | G44: 5 | J44: 20 | AD44: 25
C45: League-Conjurers | E45: 30 | G45: 5 | J45: 20 | K45: 5 | AD45: 30
C46: League-Eureka | E46: 52 | G46: 5 | I46: 12 | J46: 20 | M46: 15 | AD46: 52
A47: 2015-08-01 | C47: League-The North Star | E47: 62 | G47: 5 | H47: 5 | I47: 6 | J47: 20 | K47: 10 | L47: 10 | M47: 6 | AD47: 62
C48: League - The Transfers | E48: 30 | G48: 5 | J48: 20 | K48: 5 | AD48: 30
C49: League-Overtrick Lunatics | E49: 40 | G49: 5 | H49: 5 | J49: 20 | L49: 10 | AD49: 40
C50: League-Radbroke Bandits | E50: 37 | G50: 5 | I50: 12 | J50: 20 | AD50: 37
B51: 100724 | C51: League-Monton Misfits | E51: 35 | G51: 5 | J51: 20 | K51: 10 | AD51: 35
C52: League-Manchester S | E52: 40 | G52: 5 | H52: 5 | I52: 6 | J52: 20 | L52: 10 | M52: -6 | AD52: 40
B53: 100725 | C53: League-Grasshoppers | E53: 30 | G53: 5 | J53: 20 | K53: 5 | AD53: 30
C54: League-Sedgley | E54: 62 | G54: 5 | H54: 5 | I54: 12 | J54: 20 | K54: 5 | L54: 10 | M54: 5 | AD54: 62
C55: League-Four Dummies | E55: 60 | G55: 5 | H55: 5 | J55: 20 | K55: 5 | L55: 10 | M55: 15 | AD55: 60
B56: 100726 | C56: League-Hydrangeas | E56: 40 | G56: 5 | H56: 5 | J56: 20 | L56: 10 | AD56: 40
C57: League-Uppercut | E57: 25 | G57: 5 | J57: 20 | AD57: 25
C58: League-Cheap Tricks | E58: 45 | G58: 5 | H58: 5 | J58: 20 | K58: 5 | L58: 10 | AD58: 45
B59: 100727 | C59: League-Manchester Cardinals | D59: 30 | G59: 5 | J59: 20 | K59: 5 | AD59: 30
C60: League-Double Trouble | E60: 25 | G60: 5 | I60: 12 | J60: 20 | M60: -12 | AD60: 25
C62: League-Hindsight Convention | E62: 46 | G62: 5 | H62: 5 | I62: 6 | J62: 20 | L62: 10 | AD62: 46
C63: League-Double Diamonds | E63: 25 | G63: 5 | J63: 20 | AD63: 25
C64: League-Bank | E64: 25 | G64: 5 | J64: 20 | AD64: 25
C65: League-Slamtastic | E65: 25 | G65: 5 | J65: 20 | AD65: 25
C66: League-Chorlton Challengers | E66: 24 | G66: 5 | J66: 20 | K66: 5 | AA66: -6 | AD66: 24
C68: EBU- Jul | E68: 111.44 | F68: 111.44 | AD68: 111.44
C70: League-Touching the Void | E70: 25 | G70: 5 | J70: 20 | AD70: 25
C71: League-Tricksters | E71: 40 | G71: 5 | H71: 5 | J71: 20 | L71: 10 | AD71: 40
C72: League-Midland Railway | E72: 45 | G72: 5 | H72: 5 | J72: 20 | K72: 5 | L72: 10 | AD72: 45
B74: 100728 | C74: League-The Unconventionals | E74: 25 | G74: 5 | J74: 20 | K74: 5 | M74: -5 | AD74: 25
C75: League-Pack Choice | E75: 25 | G75: 5 | J75: 20 | AD75: 25
C76: League-Dash | D76: 50 | G76: 5 | H76: 5 | J76: 20 | K76: 10 | L76: 10 | AD76: 50
B77: 100729 | C77: League-Rueful Rabbits | E77: 25 | G77: 5 | J77: 20 | AD77: 25
C78: League-Proteus | E78: 40 | G78: 5 | H78: 5 | J78: 20 | L78: 10 | AD78: 40
C79: League-Alrincham A | E79: 45 | G79: 5 | H79: 5 | J79: 20 | K79: 5 | L79: 10 | AD79: =SUM(F79:AC79) -> 45
C80: League-Curry Eaters | E80: 62 | G80: 5 | H80: 5 | I80: 12 | J80: 20 | K80: 10 | L80: 10 | AD80: 62
B81: 100730 | C81: League-Conquering Hearts | D81: 50 | G81: 5 | H81: 5 | J81: 20 | K81: 20 | L81: 10 | M81: -4 | AA81: -6 | AD81: 50
C82: League-Manchester A | E82: 40 | G82: 5 | H82: 5 | J82: 20 | L82: 10 | AD82: 40
C84: League-Midland Railway-xtra player | E84: 5 | K84: 5 | AD84: 5
C85: League-Curse of the JS | E85: 30 | G85: 5 | I85: 24 | J85: 20 | K85: 5 | M85: -24 | AD85: 30
C87: EBU-Aug | E87: 304.36 | F87: 304.36 | AD87: 304.36
C89: League-Last Minute.Bid | E89: 25 | G89: 5 | J89: 20 | AD89: 25
C90: League-Imps R Us | E90: 65 | G90: 5 | I90: 36 | J90: 20 | K90: 10 | M90: -6 | AD90: 65
C92: GP Swiss Teams-Prize returned | E92: 40 | R92: 40 | AD92: 40
C93: League-Cheshire Cheeses | E93: 102 | G93: 5 | H93: 5 | I93: 48 | J93: 20 | K93: 20 | L93: 10 | M93: 4 | AA93: -10 | AD93: 102
C94: League-Bare Bones | E94: 55 | G94: 5 | H94: 5 | J94: 20 | K94: 15 | L94: 10 | AD94: 55
C95: League-Diamond Dames | E95: 35 | G95: 5 | J95: 20 | K95: 10 | AD95: 35
C96: League-Agamemnon | E96: 40 | G96: 5 | H96: 5 | J96: 20 | L96: 10 | AD96: 40
C97: League-New Connections-xtra player | E97: 5 | K97: 5 | AD97: 5
C98: League-Rejuvenated | E98: 52 | G98: 5 | H98: 5 | I98: 18 | J98: 20 | K98: 15 | L98: 10 | M98: 11 | AA98: -32 | AD98: 52
C99: League-Skaters | E99: 25 | G99: 5 | J99: 20 | AD99: 25
B100: 100731 | C100: League-AstraZenaca Stars | E100: 60 | G100: 5 | H100: 5 | J100: 20 | K100: 10 | L100: 10 | M100: 10 | AD100: 60
C101: League-Enigmas | E101: 60 | G101: 5 | H101: 5 | J101: 20 | K101: 20 | L101: 10 | AD101: 60
C102: League-3 Reds and a Rebel | E102: 25 | G102: 5 | J102: 20 | AD102: 25
C103: League-Altrincham Z | E103: 25 | G103: 5 | J103: 20 | AD103: 25
B104: 100732 | C104: League-The Biddables | E104: 30 | G104: 5 | J104: 20 | K104: 5 | AD104: 30
C105: League-Team Mayhem | E105: 52 | G105: 5 | H105: 5 | I105: 12 | J105: 20 | L105: 10 | AD105: 52
C106: League-Winning Ways | E106: 25 | G106: 5 | J106: 20 | AD106: 25
C107: League-Nemesis | E107: 35 | G107: 5 | J107: 20 | K107: 10 | AD107: 35
B108: 100733 | C108: League-Saint Titus | D108: 50 | G108: 5 | H108: 5 | J108: 20 | K108: 10 | L108: 10 | AD108: 50
C109: League-Farouques Googlies | D109: 30 | G109: 5 | J109: 20 | K109: 5 | AD109: 30
C110: League-Splinter Group | D110: 40 | G110: 5 | H110: 5 | J110: 20 | L110: 10 | AD110: 40
A112: 28/09/2015 | B112: Direct | C112: League-Spinning Tops | E112: 40 | G112: 5 | H112: 5 | J112: 20 | L112: 10 | AD112: 40
A114: 2015-01-10 | B114: Direct | C114: EBU-Sep | E114: 119.84 | F114: 119.84 | AD114: 119.84
A115: 15/10/2015 | B115: Direct | C115: EBU-Oct | E115: 273.77 | F115: 273.77 | AD115: 273.77
A117: 20/10/2015 | B117: Direct | C117: League-Affil.Fees-Div2-Curse of the JS | E117: 24 | M117: 24 | AD117: 24
A118: 27/10/2015 | B118: Direct | C118: League-xtra player-last Minute.bid Div 7 | E118: 5 | K118: 5 | AD118: 5
A119: 28/10/2015 | B119: Direct | C119: League-xtra players-New Connections | E119: 10 | M119: 10 | AD119: 10
A121: 2015-03-11 | B121: 10181 | C121: Autumn Intermediate Pairs | E121: 196 | V121: 196 | AD121: 196
A122: 2015-03-11 | B122: Direct | C122: League-Red Bull Div 2-extra players | E122: 10 | M122: 10 | AD122: 10
A123: 19/11/2015 | B123: Direct | C123: EBU-Nov | E123: 127.54 | F123: 127.54 | AD123: 127.54
A125: 24/12/2015 | B125: Direct | C125: EBU-Dec | E125: 273 | F125: 273 | AD125: 273
A126: 31/12/2015 | B126: Direct | C126: Loan from Treasurer | E126: 2000 | AC126: 2000 | AD126: 2000
A128: 2016-07-01 | B128: 100734 | C128: Congress Entries | D128: 2934.75 | E128: 855 | S128: 3789.75 | AD128: 3789.75
C129: Commision re book stall | D129: 25 | S129: 25 | AD129: 25
A130: 2016-07-01 | B130: 100735 | C130: Congress Entries | E130: 657.5 | S130: 657.5 | AD130: 657.5
C131: Congress cash entries £ 260, used to pay: | S131: 260 | AD131: 260
C132: KC-Transporting tables to Congress | S132: -120 | AD132: -120
C133: KC-printing | S133: -65 | AD133: -65
C134: J.Morris-EBU AGM expenses | Z134: -75 | AD134: -75
A135: 2016-07-01 | B135: 100736 | C135: Congress Entries | E135: 337.5 | S135: 337.5 | AD135: 337.5
A136: 2016-12-01 | B136: Direct | C136: Bounced Chq re Congress (D. Male) | E136: -80 | S136: -80 | AD136: -80
A137: 19/01/2016 | B137: 100737 | C137: Congress Entries-Players Progress and KC | D137: 196 | E137: 266 | Y137: 462 | AD137: 462
A138: 21/01/2016 | B138: Direct | C138: EBU-Jan | E138: 108.01 | F138: 108.01 | AD138: 108.01
A140: 2016-05-02 | B140: 100738 | C140: Ben Franks (Dec 2015): net=£41.60 | D140: 29.6 | E140: 12
C141: Entries 41 @£12+1 junior@£6=£498 | T141: 498 | AD141: 498
C142: 1 Manchester affiliation fee=£5 | I142: 5 | AD142: 5
C143: less expenses:
C144: Table money 10.5@£12=£126 | T144: -126 | AD144: =SUM(F144:AC144) -> -126
C145: Duplimated Boards & Hand records=£25 | T145: -25 | AD145: -25
C146: Directing=£80 | T146: -80 | AD146: -80
C147: Refreshments=£43/Postage & Printing=£7.40 | T147: -50.4 | AD147: -50.4
C148: Prizes=£180 | T148: -180 | AD148: -180
A149: 2016-05-02 | B149: 100739 | C149: League/Agememnon-extra players | E149: 5 | K149: 10 | M149: -5 | AD149: 5
A150: 2016-07-02 | B150: cash | C150: Gazette cup: | D150: 0 | E150: 0
C151: cash entries:£80+£80+£75 =£235 | O151: 235 | AD151: 235
C152: ABC eqpt hire-part payt=£50-chq£30 to follow | O152: -50 | AD152: -50
C153: Directing:J.Lewis & Gordon B. | O153: -80 | AD153: -80
C154: Barbara-Milk & paper cups & cutlery | O154: -114.17 | AD154: -114.17
C155: Difference loaned by Treasurer to pay on day | AC155: 9.17 | AD155: 9.17
A156: 2016-12-02 | B156: 100740 | C156: Gazette cup entries | E156: 560 | O156: 560 | AD156: 560
A157: 18/02/2016 | B157: Direct | C157: EBU-Feb | E157: 267.26 | F157: 267.26 | AD157: 267.26
A159: 2016-01-03 | B159: 10181 | C159: Cantor Cup-chq entries 12@£7 | E159: 84 | W159: 84 | AD159: 84
A160: 2016-03-03 | B160: 100741 | C160: League-extra players-£5 each | E160: 15 | K160: 10 | M160: 5 | AD160: 15
C161: Manchester Cardinals/Manchester A/Splinter Gp
A162: 2016-10-03 | B162: 100742 | C162: Congress entries-replacement chq+cash | D162: 12.5 | E162: 80 | S162: 92.5 | AD162: 92.5
A163: 2016-10-03 | B163: 100743 | C163: G.P.Pairs-net | D163: 1203 | E163: 504
C164: Income £1782 | Q164: 1782 | AD164: 1782
C165: ,less £75 refreshments etc | Q165: -75 | AD165: -75
A166: 2016-09-03 | B166: Direct | C166: League-extra players-Touching the Void | E166: 10 | K166: 5 | M166: 5 | AD166: 10
A167: 17/03/2016 | B167: Direct | C167: EBU-P2P | E167: 121.73 | F167: 121.73 | AD167: 121.73
B168: Cash held | C168: League-Hydrangeas | D168: 10 | K168: 10 | AD168: 10
B169: Cash held | C169: League-Conquering Hearts-Bal. Paid | D169: 4 | M169: 4 | AD169: 4
B170: League Under-payments: £29 included in entries above, plus:
B171: Debtor | C171: Petersfield | G171: 5 | I171: 6 | J171: 20 | K171: 5 | M171: -36 | AD171: 0
B172: Debtor | C172: Bombay Sapphires | G172: 5 | J172: 20 | K172: 10 | M172: -35 | AD172: 0
B173: Debtor | C173: Adlan | I173: 24 | M173: -24 | AD173: 0
B174: Debtor | C174: Jems | G174: 5 | J174: 20 | M174: -25 | AD174: 0
B175: Debtor | C175: Newcomers | G175: 5 | J175: 20 | M175: -25 | AD175: 0
A176: Total Income | D176: =SUM(D8:D175) -> 4664.85 | E176: =SUM(E8:E175) -> 16240.76 | F176: =SUM(F8:F167) -> 2383.78 | G176: =SUM(G8:G175) -> 335 | H176: 165 | I176: 251 | J176: 1340 | K176: 350 | L176: 330 | M176: -59 | N176: 63 | O176: 550.83 | P176: 0 | Q176: 1707 | R176: 1675 | S176: 4897.25 | T176: 36.6 | U176: 294 | V176: 196 | W176: 84 | X176: 0 | Y176: 462 | Z176: -75 | AA176: 0 | AB176: 21 | AC176: 2009.17 | AD176: 20905.61
A178: Total Income//Cash | E178: =E176+D176 -> 20905.61
A180: Expenditure | D180: =Expenses!D192 -> 0 | E180: =Expenses!E192 -> 22111.63 | F180: =Expenses!F192 -> 0 | G180: =Expenses!G192 -> 489.6 | H180: =Expenses!H192 -> 0 | I180: =Expenses!I192 -> 0 | J180: =Expenses!J192 -> 50 | K180: =Expenses!K192 -> 0 | L180: =Expenses!L192 -> 672 | M180: =Expenses!M192 -> 45 | N180: =Expenses!N192 -> 0 | O180: =Expenses!O192 -> 505.44 | P180: =Expenses!P192 -> 80 | Q180: =Expenses!Q192 -> 1377.14 | R180: =Expenses!R192 -> 1362.22 | S180: =Expenses!S192 -> 6064.87 | T180: =Expenses!T192 -> 18.76 | U180: =Expenses!U192 -> 273.7 | V180: =Expenses!V192 -> 189.87 | W180: =Expenses!W192 -> 92.06 | X180: =Expenses!X192 -> 0 | Y180: =Expenses!Y192 -> 239.75 | Z180: =Expenses!AJ192 -> 294.9 | AA180: =Expenses!AV192 -> 4.689582056e-13 | AB180: =Expenses!AW192 -> -326 | AC180: =Expenses!AX192 -> 2009.17 | AD180: =SUM(F180:AC180) -> 13438.48
A182: Total Expenditure/Cash | E182: =E180+D180 -> 22111.63
A184: Totals | E184: =E178-E182 -> -1206.02 | F184: =F176-F180 -> 2383.78 | G184: -154.6 | H184: 165 | I184: 251 | J184: =J176-J180 -> 1290 | K184: 350 | L184: =L176-L180 -> -342 | M184: =M176-M180 -> -104 | N184: 63 | O184: 45.39 | P184: -80 | Q184: 329.86 | R184: 312.78 | S184: -1167.62 | T184: 17.84 | U184: 20.3 | V184: 6.13 | W184: -8.06 | X184: 0 | Y184: 222.25 | Z184: -369.9 | AA184: -4.689582056e-13 | AB184: 347 | AC184: 0
A186: Cash Held, not yet banked | E186: =D168+D169 -> 14
A188: Sundry Creditors-Unpresented Cheques | E188: =Expenses!E199 -> 2490.65
A189: Other Creditor - EBU license fee for league | E189: =Expenses!E191 -> 489.6
A190: Transfer from Skipton BS | E190: 2000
A192: Bank Balance | D192: 14 | E192: =E184-E186+E188+E190+E189 -> 3760.23

Sheet Skipton BS
A1: Skipton Building Society
D3: 2015 - 2016 | E3: 2014 - 2015 | F3: 2013 - 2014 | G3: 2012 - 2013 | I3: 2011-2012 | K3: 2010 - 2011 | M3: 2009 - 2010
A5: Balance B/F | D5: =E9 -> 11718.7 | E5: =F9 -> 11718.7 | F5: =G9 -> 11644.18 | G5: =I9 -> 11586.88 | I5: =K9 -> 11454.29 | K5: =M9 -> 11239.54 | M5: 11000
A6: Transfer to NatWest | D6: -2000
A7: Interest | D7: 75 | F7: 74.52 | G7: 57.3 | I7: 132.59 | K7: =11454.29-M9 -> 214.75 | M7: 239.54
A9: Total | D9: =SUM(D5:D8) -> 9793.7 | E9: =SUM(E5:E8) -> 11718.7 | F9: =F5+F7 -> 11718.7 | G9: =SUM(G5:G8) -> 11644.18 | I9: =I5+I7 -> 11586.88 | K9: =K5+K7 -> 11454.29 | M9: =SUM(M5:M8) -> 11239.54

Sheet Expenses
A1: Expenditure | AK1: Travel
AK2: Telephone | AL2: Bridge
A3: Date | B3: Cheque No | C3: Details | P3: Merville | Q3: Pairs | R3: Teams | U3: Summer | V3: Autumn | Y3: Players Progress | Z3: EBU | AA3: EBU | AB3: MCBA | AC3: Retirement | AD3: EBU | AE3: EBU | AF3: Presidents | AG3: Derbyshire | AH3: NBL | AI3: All Counties | AJ3: EBU | AK3: Printing | AL3: Stationery & | AM3: Handbook | AN3: AGM | AO3: Youth | AP3: Seminars | AQ3: EBU | AR3: Engraving | AS3: Camrose | AT3: Northern | AU3: Room | AV3: Outstanding | AW3: Prior Year | AX3: Loan from | AY3: Totals
D4: Cash | E4: Bank | F4: EBU | G4: EBU P2P | H4: EBU P2P | I4: EBU | J4: EBU | K4: League & Cup | L4: Higson | M4: Over | N4: EBU | O4: Gazette | P4: Goldstone | Q4: Green | R4: Green | S4: Manchester | T4: Ben | U4: Intermediate | V4: Intermediate | W4: Cantor Cup | X4: Newcomers | Y4: & Kevin Comrie | Z4: Tollemache | AA4: Corwen | AB4: Website | AC4: Gifts/ | AD4: Pachabo | AE4: Garden | AF4: Cup | AG4: Friendly | AI4: Super | AJ4: Delegate | AK4: Postage | AL4: Equipment | AM4: Expenses | AN4: Expenses | AO4: Budget | AQ4: Masterpoints | AT4: Counties | AU4: Bookings | AV4: Expenses | AW4: Corrections | AX4: Treasurer
F5: P2P (clubs) | G5: League | H5: Cup | I5: Affiliates | J5: League | K5: >4 players | L5: Cup & Plate | M5: Payments | N5: BFA | O5: Trophy | P5: Trophy | Q5: Points | R5: Points | S5: Congress | T5: Franks | U5: Pairs | V5: Pairs | X5: League | Y5: Cups | AB5: Fees | AC5: Presentations | AD5: Cup | AE5: Cities | AI5: Final | AJ5: Expenses | AK5: Stationery | AL5: Insurance | AT5: Working | AU5: etc for | AV5: 2014 - 2015
AK6: Bank Fees | AT6: Group | AU6: Next Year
A7: Paid in Prior Year for this year, but omitted as prepayments at 31/03/2015
C8: Hire of Hall-paid and charged to prior year-Summer Intermed Pairs | U8: 84 | AW8: -84 | AY8: =SUM(F8:AX8) -> 0
C9: Hire of Hall for Swiss Teams £168 | R9: 168 | AW9: -168 | AY9: =SUM(F9:AX9) -> 0
C10: (also see below -2 deposits@£50 for GP Swiss Pairs and teams) | AY10: =SUM(F10:AX10) -> 0
B11: 1227 | C11: Chq written last yr, not cashed & left out of a/cs-ABC caretaker Xmas gift | E11: 20 | AC11: 20 | AY11: 20
C12: (Have just left this £20 as current year cost and not done prior year correction) | AY12: 0
A13: Sundry Debtors & Creditors as at 31st March 2015-see below in yellow | AV13: -2799.1 | AY13: -2799.1
C14: Sundry Creditors b/f =£2853.10, less league overpayments=£54 in income ss | AY14: 0
AY15: 0
B16: 1236 | C16: J Lewis - GP Pairs Assistant Director | E16: 65 | AV16: 65 | AY16: =SUM(F16:AX16) -> 65
AY17: 0
B18: 1240 | C18: Manchester Congress 2016 - V&A Deposit, but payment cleared in correct yr | E18: 500 | S18: 500 | AY18: 500
AY19: 0
B20: 1241 | C20: EBU Insurance | E20: 71.1 | AL20: 71.1 | AY20: 71.1
B21: 1241 | C21: EBU Gazette Cup P2P | E21: 23.8 | AV21: 23.8 | AY21: 23.8
AY22: 0
B23: 1243 | C23: Graham Winn - Handbook Costs | E23: 212.8 | AV23: 212.8 | AY23: 212.8
AY24: 0
B25: 1244 | C25: Kath Nelson - Higson Cup & Plate Prizes | E25: 250 | AV25: 250 | AY25: 250
AY26: 0
B27: 1245 | C27: Kath Nelson - 3 x Director's Fees - Higson Cup & Plate | E27: 240 | AV27: 240 | AY27: 240
AY28: 0
B29: 1246 | C29: EBU GP Pairs P2P | E29: 362 | AV29: 362 | AY29: 362
AY30: 0
B31: 1247 | C31: Jean Keen - Higson Cup Engraving 2013 - 2014 | E31: 6.5 | AV31: 6.5 | AY31: 6.5
AY32: 0
B33: 1248 | C33: Joan Lewis - Higson Cup & Plate Expenses | AY33: 0
AY34: 0
C35: Dealing £20 | AV35: 20 | AY35: 20
C36: Hand Records-£16 | E36: 36 | AV36: 16 | AY36: 16
AY37: 0
B38: 1249 | C38: EBU Garden Cities Trophy 2015 Entry Fee | E38: 250 | AE38: 250 | AY38: 250
AY39: 0
B40: 1250 | C40: MBC - Higson Cup & Plate Final - Table Hire 21 tables @ £12 per table | E40: 252 | AV40: 252 | AY40: 252
AY41: 0
B42: 1251 | C42: M&CBA - Entry to President's Cup | E42: 205 | AF42: 205 | AY42: 205
AY43: 0
B44: 1252 | C44: Bob Cooke's Leaving Present | E44: 50 | AV44: 50 | AY44: 50
AY45: 0
B46: 1253 | C46: Intermediate Player of the Year - Peter Carey-Yard | E46: 50 | AV46: 50 | AY46: 50
B47: 1254 | C47: Player of the Year - John Currie | E47: 50 | AV47: 50 | AY47: =SUM(F47:AX47) -> 50
AY48: 0
B49: 1255 | C49: Irene Davies - League Prizes - Glasses | E49: 750 | AV49: 750 | AY49: 750
AY50: 0
B51: 1256 | C51: Joan Hinchliffe - Treasurer's Expenses | E51: 35 | AV51: 35 | AY51: 35
AY52: 0
B53: 1257 | C53: MBC - Hire of Room - Pachabo Team Selection | E53: 50 | AD53: 50 | AY53: 50
AY54: 0
B55: 1258 | C55: Sid Travers - EBU Half Yearly Meeting | E55: 184.9 | AJ55: 184.9 | AY55: 184.9
AY56: 0
B57: 1259 | C57: Jeff Morris -EBU Half Yearly Meeting | E57: 53.55 | AJ57: 53.55 | AY57: 53.55
AY58: 0
B59: 1260 | C59: Barbara Lewis - Summer Intermediate Pairs | E59: 189.7 | AY59: 0
C60: Cash Income used to re-imburse BL | U60: -56 | AY60: -56
C62: Director-J Lewis | U62: 45 | AY62: 45
C63: ABC-hire of tables and bidding boxes | U63: 20 | AY63: 20
C64: Postage | U64: 3.24 | AY64: 3.24
C65: Duplimated Boards and 60 hand records | U65: 12 | AY65: 12
C66: Refreshments | U66: 13.5 | AY66: 13.5
C67: Sweets | U67: 10 | AY67: 10
C68: !st Prizes-2@£30/pair | U68: 60 | AY68: 60
C69: 2nd Prizes-2@£20/pair | U69: 40 | AY69: 40
C70: 2x 3rd and 2x 4th prizes: | AY70: 0
C71: 4 wine | U71: 24 | AY71: 24
C72: 4 chocolates | U72: 17.96 | AY72: 17.96
AY73: 0
B74: 1261 | C74: Ian Mitchel-InterCounties Entry Fees | E74: 180 | AI74: 180 | AY74: 180
B75: 1262 | C75: Bob Cooke - £50 gift for Treasurer leaving/£27.33-wine for AGM | E75: 77.33 | AC75: 50 | AN75: 27.33 | AY75: 77.33
B76: 1263 | C76: Chq destroyed | AY76: 0
B77: 1264 | C77: GPS Teams-David Stephenson-Directing | E77: 172.5 | R77: 172.5 | AY77: 172.5
B78: 1265 | C78: GPS Teams-Joan Lewis Asst Director+Printing | E78: 78 | R78: 78 | AY78: 78
B79: 1266 | C79: GPS Teams-ABC-Loan of Equipment & duplimating | E79: 128 | R79: 128 | AY79: =SUM(F79:AX79) -> 128
B80: 1267 | C80: GPS Teams-Rhona Goldenfield-Prizes | E80: 440 | R80: 440 | AY80: 440
B81: 1268 | C81: Irene Davies-EBU meeting expenses | E81: 56.45 | AJ81: 56.45 | AY81: 56.45
B82: 1269 | C82: Mike Newman-Engraving trophies for Ben Franks& Gazette Cup | E82: 16 | O82: 12 | T82: 4 | AY82: 16
A83: 2015-11-08 | B83: 1270 | C83: EBU-Pachabo Cup | E83: 206 | AD83: 206 | AY83: 206
A84: 15/08/2015 | B84: 1271 | C84: EBU_Corwen Trophy | E84: 368 | AA84: 368 | AY84: 368
AY85: 0
A86: 2015-10-09 | B86: 1272 | C86: Goldstone Cup Prize Money | E86: 80 | P86: 80 | AY86: 80
A87: 2015-03-10 | B87: 1273 | C87: St Peters PCC(inv 1046) -Room Hire for Intermediate Pairs on 12/06/2016 | E87: 92 | AU87: 92 | AY87: 92
A88: 2015-03-10 | B88: 1274 | C88: St Peters PCC(inv 1045) -Room Hire for Gazette Cup on 07/02/2016 | E88: 138 | O88: 138 | AY88: 138
A89: 2015-03-10 | B89: 1275 | C89: Tollemache (Rodney Lighton) - Tollemache 8@£50expenses+NPC £90.45 | E89: 490.45 | Z89: 490.45 | AY89: 490.45
A90: 2015-03-10 | B90: 1276 | C90: EBU-Tollemache entry fees 2015/16 | E90: 416 | Z90: 416 | AY90: 416
A91: 2015-03-10 | B91: 1277 | C91: StPetersPCC - Room Hire for Intermediate Pairs on 01/11/2015 | E91: 92 | V91: 92 | AY91: 92
A92: 2015-03-10 | B92: 1278 | C92: League-City Aces refund-H. Weinstock | E92: 24 | M92: 24 | AY92: 24
A93: 2015-03-10 | B93: 1279 | C93: League-Eureka refund-A.Morris | E93: 15 | M93: 15 | AY93: 15
A94: 2015-03-10 | B94: 1280 | C94: League- refund-M. Hart | E94: 6 | M94: 6 | AY94: 6
A95: 2015-05-10 | B95: 1281 | C95: MBC-re-imurse for equipment for Manchester University Club | E95: 200 | AO95: 200 | AY95: 200
A96: 2015-05-10 | B96: 1282 | C96: MBC-hosting Derbyshire Match on 05/07/2015 | E96: 375.3 | AG96: 375.3 | AY96: 375.3
A97: 2015-05-10 | B97: 1283 | C97: Jeff Morris-expenses re Northern Counties Working Gp. | E97: 60 | AT97: 60 | AY97: 60
AY98: 0
A99: 14/11/2015 | B99: 1284 | C99: V&A Hotel-deposit for Manchester Congress 2017 | E99: 500 | AU99: 500 | AY99: 500
A100: 14/11/2015 | B100: 1285 | C100: EBU inv568047 dated11/08/15 for green-pointed event | E100: 375.72 | R100: 375.72 | AY100: 375.72
A101: 14/11/2015 | B101: 1286 | C101: EBU inv.568046-League 2014-15 Div 1-6 P2P | E101: 380.8 | AV101: 380.8 | AY101: 380.8
A102: 14/11/2015 | B102: 1287 | C102: Rodney Lighton for extra Tollemache expenses 8@£25 | E102: 200 | Z102: 200 | AY102: 200
A103: 14/11/2015 | B103: 1288 | C103: Michael Byrne for engraving for Congress | E103: 12 | S103: 12 | AY103: 12
AY104: 0
A105: 14/11/2015 | B105: 1289 | C105: net payment to Barbara Lewis re Autumn Intermediate Pairs | E105: 97.87 | AY105: 0
C106: Cash Income - 26@ £7 | V106: -182 | AY106: -182
C107: Direector-Joan Lewis | V107: 45 | AY107: 45
C108: Hire of Equipment | V108: 20 | AY108: 20
C109: Caretaker Gratuity | V109: 10 | AY109: 10
C110: Duplimated Boards & hand records-JL | V110: 12 | AY110: 12
C111: Refreshments | V111: 28.75 | AY111: =SUM(F111:AX111) -> 28.75
C112: Stationery/Printing | V112: 1 | AY112: 1
C113: Postage | V113: 2.16 | AY113: 2.16
C114: Prizes-2@£40/2@£20/2@2 bottles wine/2@2boxes chocs. | V114: 160.96 | AY114: 160.96
AY115: 0
A116: 2015-05-12 | B116: 1290 | C116: M.Byrne-seminar for County C Team | E116: 250 | AP116: 250 | AY116: 250
A117: 2015-05-12 | B117: 1291 | C117: MBC-Room hire for C team seminar | E117: 50 | AP117: 50 | AY117: 50
A118: 2015-09-12 | B118: 1292 | C118: V & A hotel - Manchester Congress 2016 | E118: 2839 | S118: 2839 | AY118: 2839
A119: 2015-09-12 | B119: 1293 | C119: B.Lewis re Congress | AY119: 0
C120: Engraving £84/Stationery £44.72/Postage £12.96 | E120: 141.68 | S120: 141.68 | AY120: 141.68
A121: 26/12/2015 | B121: 1294 | C121: V&A-par parking for Congress/7@£8 | E121: 112 | S121: 112 | AY121: 112
AY122: 0
A123: 2016-07-01 | B123: 1295 | C123: (Irene)- | E123: 621 | S123: 396 | Z123: 225 | AY123: 621
C124: Tollemache £225 re £25 allowance each | AY124: 0
C125: Congress £396 re V7A hire of magaphone £60 and £336 teas and coffees | AY125: 0
A126: 2016-07-01 | B126: 1296 | C126: cheque destroyed | AY126: 0
A127: 2016-07-01 | B127: 1297 | C127: S.Triggs-Prizes £45.75/equipment Hire from Larkhill £20 | E127: 65.75 | Y127: 65.75 | AY127: 65.75
A128: 2016-07-01 | B128: 1298 | C128: Haidee-Repayment of loan to Treasurer | E128: 2000 | AX128: 2000 | AY128: 2000
A129: 2016-07-01 | B129: 1299 | C129: J.Lewis-Congress (Players Progress and Kevin Comrie section): | E129: 134 | Y129: 134 | AY129: 134
C130: Directing £60/Hand Records £8/Altrincham Equpmnt£50/dealing Boards£16 | AY130: 0
A131: 2016-07-01 | B131: 1300 | C131: cheque destroyed | AY131: 0
A132: 2016-07-01 | B132: 1301 | C132: M & S Amos-Congress: | E132: 744.32 | S132: 744.32 | AY132: 744.32
C133: Directing £450/Travel £57.12/Meals £118/Boards and Hand Records £119.20 | AY133: 0
A134: 2016-10-01 | B134: 1302 | C134: G. Wynne-directing Congress (Player Cup and KC Cup | E134: 40 | Y134: 40 | AY134: 40
A135: 15/01/2016 | B135: 1303 | C135: B.Lewis-Congress Prizes £1350 | E135: 1024 | S135: 1350 | AY135: =SUM(F135:AX135) -> 1350
C136: less tea and coffee receipts £226 | S136: -226 | AY136: =SUM(F136:AX136) -> -226
C137: less Prize donated by Jeff Morris for Juniors-£100 | S137: -100 | AY137: -100
A138: 23/01/2016 | B138: 1304 | C138: St. Peters PCC-Room Hire 05/03/16 GP Pairs £184/ and 24/07/16 GP teams | E138: 268 | Q138: 184 | AU138: 184 | AW138: -100 | AY138: 268
C139: £184 less £100 deposit paid | AY139: 0
A140: 23/01/2016 | B140: 1305 | C140: St. Peters PCC Room Hire-deposit for Swiss teams and Pairs in 2017 | E140: 100 | AU140: 100 | AY140: 100
A141: 25/01/2016 | B141: 1306 | C141: Jim Straffon Congress entry refund for him and Eleanor Price | E141: 35 | S141: 35 | AY141: 35
A143: 2016-03-02 | B143: 1307 | C143: D.Youles-Gazette Cup refreshments | E143: 287 | O143: 287 | AY143: 287
A144: 2016-03-02 | B144: 1308 | C144: O.Burgess-Tollemache 8 @ £25 expenses | E144: 200 | Z144: 200 | AY144: 200
A145: 2016-03-02 | B145: 1309 | C145: I.Davies-Tollemache-expenses for NPC | E145: 34.95 | Z145: 34.95 | AY145: 34.95
A146: 2016-11-02 | B146: 1310 | C146: A.Thornton-Gazette Cup-caretaker gratuity | E146: 10 | O146: 10 | AY146: 10
A147: 2016-11-02 | B147: 1311 | C147: S.Triggs-Engraving | E147: 12 | AR147: 12 | AY147: 12
A148: 2016-11-02 | B148: 1312 | C148: J.Lewis-Gzette Cup-equipment hire from ABC | E148: 30 | O148: 30 | AY148: 30
A149: 2016-11-02 | B149: 1313 | C149: I.Davies-Engraving: Congress £9.95 & Cantor Cup £11.90 | E149: 21.85 | S149: 9.95 | W149: 11.9 | AY149: 21.85
A150: 17/02/2016 | B150: 1314 | C150: D.Stevenson-GP pairs on 05/03/16-directing | E150: 177 | Q150: 177 | AY150: 177
A151: 17/02/2016 | B151: 1315 | C151: J.Lewis-GP pairs-directing/printing/caretaker tip | E151: 80 | Q151: 80 | AY151: 80
A152: 17/02/2016 | B152: 1316 | C152: ABC-GP Pairs-Hire Equipment & Duplimated Boards | E152: 126 | Q152: 126 | AY152: 126
A153: 17/02/2016 | B153: 1317 | C153: Rhona G. - GP pairs-Prizes | E153: 440 | Q153: 440 | AY153: 440
A155: 2016-02-03 | B155: 1318 | C155: B. Lewis-Cantor Cup-net payment=£80.16: | E155: 80.16
C156: Cash Entry Fees=28@£7+8@£3.50 | W156: -234 | AY156: -234
C157: Donations=1@£100/2@£30/trophies=£20 | W157: -150 | AY157: -150
C158: Hire MBC-12 tables@£12 | W158: 144 | AY158: 144
C159: Director-Joan Lewis | W159: 45 | AY159: 45
C160: Duplimated boards and hand records | W160: 13 | AY160: 13
C161: Printing/Stationery | W161: 2 | AY161: 2
C162: Postage | W162: 13.16 | AY162: 13.16
C163: Refreshments | W163: 82 | AY163: 82
C164: Prizes=£100+£30+£13+£11+£11 | W164: 165 | AY164: 165
A165: 2016-08-03 | B165: 1319 | C165: A.Thorton-printing | E165: 3.3 | AK165: 3.3 | AY165: 3.3
A166: 24/03/2016 | B166: 1320 | C166: R.Lighton-website expenses | E166: 71.84 | AB166: 71.84 | AY166: 71.84
B167: 1321 | C167: cheque destroyed | AY167: 0
A168: 24/03/2016 | B168: 1322 | C168: EBU-Ben Franks P2P | E168: 14.76 | T168: 14.76 | AY168: 14.76
A169: 31/03/2016 | B169: Direct | C169: Bank Charges | E169: 20 | AK169: 20 | AY169: 20
A170: 31/03/2016 | B170: Direct | C170: Difference on Bank Rec. | E170: -0.4 | AK170: -0.4 | AY170: -0.4
A171: Creditors-Post yr-end cheques written relating to 2015/2016 year:
A172: 2016-05-04 | B172: 1323 | C172: K.Nelson - Cup Prizes | E172: 250 | L172: 250 | AY172: 250
A173: 2016-10-04 | B173: 1326 | C173: J.Lewis-Plate final-directing | E173: 80 | L173: 80 | AY173: 80
A174: 2016-10-04 | B174: 1327 | C174: J.Smith - Cup directing | E174: 80 | L174: 80 | AY174: 80
A175: 2016-10-04 | B175: 1328 | C175: ABC-Cup & Plate Finals:Hand records£16/Duplimating Brds £30 | E175: 46 | L175: 46 | AY175: 46
A176: 19/4/2016 | B176: 1329 | C176: MBC-Cup & Plate Finals: 18 tables@£12 | E176: 216 | L176: 216 | AY176: 216
A177: 2016-10-04 | B177: 1330 | C177: S.Davies: NBL-4 teams @ £75 | E177: 300 | AH177: 300 | AY177: =SUM(F177:AX177) -> 300
A178: 2016-07-05 | B178: 1331 | C178: Expert Player of Year-Michael Newman | E178: 50 | AC178: 50 | AY178: 50
A179: 2016-07-05 | B179: 1332 | C179: Joint Intermediate POY- Graham Campbell | E179: 25 | AC179: 25 | AY179: 25
A180: 2016-07-05 | B180: 1333 | C180: Joint Intermediate POY - George Leigh | E180: 25 | AC180: 25 | AY180: 25
A181: 2016-07-05 | B181: 1334 | C181: I.Davies-engraving 3 trophies for POY | E181: 19.5 | AC181: 19.5 | AY181: 19.5
A182: 2016-07-05 | B182: 1335 | C182: H.Tattersall-repayt of cash provided for Gazette Cup | E182: 9.17 | AX182: 9.17 | AY182: =SUM(F182:AX182) -> 9.17
A183: 18/05/2016 | B183: 1336 | C183: EBU Inv 574886-Congress License Fees | E183: 250.92 | S183: 250.92 | AY183: =SUM(F183:AX183) -> 250.92
A184: 18/05/2016 | B184: 1337 | C184: EBU inv 578684-License Fees Gazette=£28.44/League Div 7 last year=£61.20 | E184: 89.64 | O184: 28.44 | AV184: 35.2 | AW184: 26 | AY184: 89.64
A185: 18/05/2016 | B185: 1339 | C185: EBU inv.580623-License Fees GP Pairs on 5/03/16 | E185: 370.14 | Q185: 370.14 | AY185: 370.14
A186: 18/05/2016 | B186: 1340 | C186: EBU inv.580977 - License Fees-Garden Cities final | E186: 260 | AE186: 260 | AY186: 260
A187: 21/05/2016 | B187: 1342 | C187: League cup engraving | E187: 50 | J187: 50 | AY187: 50
A188: 22/05/2016 | B188: 1343 | C188: Treasurers Expenses-2015/16-postage | E188: 22.68 | AK188: 22.68 | AY188: 22.68
A189: 22/05/2016 | B189: 1344 | C189: EBU inv. - Garden Cities Final | E189: 260 | AE189: 260 | AY189: 260
C190: Other creditors:
C191: Estimated EBU license fee for League 2015/16 | E191: 489.6 | G191: 489.6 | AY191: =SUM(F191:AX191) -> 489.6
A192: Total Expenditure | D192: =SUM(D7:D191) -> 0 | E192: =SUM(E7:E191) -> 22111.63 | F192: =SUM(F7:F191) -> 0 | G192: 489.6 | H192: 0 | I192: 0 | J192: 50 | K192: 0 | L192: 672 | M192: 45 | N192: 0 | O192: 505.44 | P192: 80 | Q192: 1377.14 | R192: 1362.22 | S192: 6064.87 | T192: 18.76 | U192: 273.7 | V192: 189.87 | W192: =SUM(W7:W191) -> 92.06 | X192: 0 | Y192: 239.75 | Z192: 1566.4 | AA192: 368 | AB192: 71.84 | AC192: 189.5 | AD192: 256 | AE192: 770 | AF192: 205 | AG192: 375.3 | AH192: 300 | AI192: 180 | AJ192: 294.9 | AK192: 45.58 | AL192: 71.1 | AM192: 0 | AN192: 27.33 | AO192: 200 | AP192: 300 | AQ192: 0 | AR192: 12 | AS192: 0 | AT192: 60 | AU192: 876 | AV192: 4.689582056e-13 | AW192: -326 | AX192: 2009.17 | AY192: 19312.53
A194: Cash | E194: =D192 -> 0 | AX194: add:op. bals | AY194: =2853.1-54 -> 2799.1
AY195: =AY192+AY194 -> 22111.63
A196: Total Expenditure | E196: =E192+E194 -> 22111.63 | AX196: differene | AY196: =E192-AY195 -> 0
A198: Creditors:
A199: Cheques not presented | C199: See above | E199: =E166+E168+E172+E173+E174+E175+E176+E177+E178+E179+E180+E181+E182+E183+E184+E185+E186+E187+E188+E189 -> 2490.65
A200: Creditor-EBU League License fee-see above | E200: =E191 -> 489.6
J201: 489.6

Sheet Balance Sheet
A1: Manchester County Bridge Association
A2: Balance Sheet as at 31st March 2015
C4: 2015-2016 | D4: 2014 - 2015 | E4: 2013 - 2014 | G4: 2012 - 2013 | I4: 2011 -2012 | K4: 2010 - 2011 | M4: 2009-2010 | O4: 2008-2009
A6: Trophies | C6: 834 | D6: 834 | E6: 834 | G6: 834 | I6: 834 | K6: 834 | M6: 834 | O6: 834
A7: P.A.System | C7: 0 | D7: 0 | E7: 0 | G7: 67 | I7: 167 | K7: 267 | M7: 267 | O7: 267
A9: Fixed Assets | C9: =C6+C7 -> 834 | D9: =D6+D7 -> 834 | E9: =SUM(E6:E8) -> 834 | G9: 901 | I9: =SUM(I6:I7) -> 1001 | K9: =SUM(K6:K7) -> 1101 | M9: =SUM(M6:M8) -> 1101 | O9: =SUM(O6:O8) -> 1101
A11: Bank Reserve Account - Skipton BS | C11: ='Skipton BS'!D9 -> 9793.7 | D11: 11718.7 | E11: 11644.18 | G11: 11560.36 | I11: 11586.88 | K11: 11454.29 | M11: 11239.54 | O11: 11000
A12: Current Account | C12: =Income!E192 -> 3760.23 | D12: 3826.78 | E12: 5774.25 | G12: 8402.66 | I12: 6779.46 | K12: 4030.93 | M12: 4246.38 | O12: 2717.03
A13: Cash in Hand | C13: 14 | D13: 0 | E13: 0 | G13: 0 | I13: 0 | K13: 0 | M13: =[1]Income!D137 -> 0 | O13: 200
A14: Sundry Debtors - note 18 | C14: ='Closing Debtors & Creditors'!E69 -> 1055 | D14: 116.2 | E14: 0 | G14: 0 | I14: 0 | K14: =6+81 -> 87 | M14: 500 | O14: 100
A15: Sundry Creditors - note 19 | C15: =-'Closing Debtors & Creditors'!E56 -> -3055.25 | D15: -2853.1 | E15: -2886.06 | G15: -2707.63 | I15: -2181.24 | K15: =-([1]Income!F138) -> 0 | M15: -1301.62 | O15: -441.5
A17: Total Current Assets | C17: =SUM(C11:C16) -> 11567.68 | D17: =SUM(D11:D16) -> 12808.58 | E17: =SUM(E11:E16) -> 14532.37 | G17: =SUM(G11:G16) -> 17255.39 | I17: =SUM(I11:I16) -> 16185.1 | K17: =SUM(K11:K15) -> 15572.22 | M17: =SUM(M11:M16) -> 14684.3 | O17: =SUM(O11:O16) -> 13575.53
A19: Net Assets | C19: =C9+C17 -> 12401.68 | D19: =D9+D17 -> 13642.58 | E19: =E9+E17 -> 15366.37 | G19: =G9+G17 -> 18156.39 | I19: =I9+I17 -> 17186.1 | K19: =K9+K17 -> 16673.22 | M19: =M9+M17 -> 15785.3 | O19: =O9+O17 -> 14676.53
A21: Reserves Brought Forward | C21: =D24 -> 13642.58 | D21: =E24 -> 15366.37 | E21: =G24 -> 18156.39 | F21: 0 | G21: 17186.1 | H21: 0 | I21: 14942.67 | J21: 0 | K21: 15785.3 | L21: 0 | M21: 14676.53 | O21: 13331.5
A22: Surplus/Deficit for the Year | C22: ='Income & Expenditure (2)'!D50 -> -1240.9 | D22: =D19-D21 -> -1723.79 | E22: =E19-E21 -> -2790.02 | G22: =G19-G21 -> 970.29 | H22: =H19-H21 -> 0 | I22: 2243.43 | J22: =J19-J21 -> 0 | K22: -842.63 | L22: =L19-L21 -> 0 | M22: =M19-M21 -> 1108.77 | N22: =N19-N21 -> 0 | O22: =O19-O21 -> 1345.03
A24: Reserves Carried Forward | C24: =SUM(C21:C23) -> 12401.68 | D24: =SUM(D21:D23) -> 13642.58 | E24: =SUM(E21:E23) -> 15366.37 | G24: =SUM(G21:G23) -> 18156.39 | I24: =SUM(I21:I23) -> 17186.1 | K24: =K21+K22 -> 14942.67 | M24: =M21+M22 -> 15785.3 | O24: =O21+O22 -> 14676.53
B26: Difference | C26: =C19-C24 -> 0

Sheet Closing Debtors & Creditors
A1: C
C2: 1. Prior Year Adjustments
B4: A) | C4: Prepayments, not accrued:
C5: Room Bookings per note 18 of 2014-2015 Accounts:
C6: GP Teams - July 2015 | D6: 168
C7: Intermediate Pairs-Summer 2015 | D7: 84
C8: GP Teams - July 2016 - deposit | D8: 50
C9: GP Pairs - March 2016 - deposit | D9: 50
C10: Total | D10: =SUM(D6:D9) -> 352 | E10: positive
B12: B) | C12: Additional receipts for 2014-15 league, not in prior yr. creditors
C13: Davenport - 2 extra players | D13: 10
C14: City Aces - Extra Player & Affiliation fee | D14: 11
C15: Total | D15: =SUM(D13:D14) -> 21 | E15: positive
B17: C) | C17: Additional cost re prior-year League
C18: Provision made for EBU license fee for League 2014-15 in last yr. creditors | D18: 416
C19: Actual charge levied | D19: 442
C20: Additional cost, not provided | D20: =D19-D18 -> 26 | E20: negative
C22: Net Effect - deducted from expenses for 2015-16 | D22: =D20-D15-D10 -> -347
C25: 2. Creditors
B27: a) | C27: Creditors ("unpresented chqs")-written after 31/03/2016 for 2015-16 expenses
A29: 24/03/2016 | B29: 1320 | C29: R.Lighton-website expenses | E29: 71.84
B30: 1321 | C30: cheque destroyed
A31: 24/03/2016 | B31: 1322 | C31: EBU-Ben Franks P2P | E31: 14.76
A32: 2016-05-04 | B32: 1323 | C32: K.Nelson - Cup Prizes | E32: 250
A33: 2016-10-04 | B33: 1326 | C33: J.Lewis-Plate final-directing | E33: 80
A34: 2016-10-04 | B34: 1327 | C34: J.Smith - Cup directing | E34: 80
A35: 2016-10-04 | B35: 1328 | C35: ABC-Cup & Plate Finals:Hand records£16/Duplimating Brds £30 | E35: 46
A36: 19/4/2016 | B36: 1329 | C36: MBC-Cup & Plate Finals: 18 tables@£12 | E36: 216
A37: 2016-10-04 | B37: 1330 | C37: S.Davies: NBL-4 teams @ £75 | E37: 300
A38: 2016-07-05 | B38: 1331 | C38: Expert Player of Year-Michael Newman | E38: 50
A39: 2016-07-05 | B39: 1332 | C39: Joint Intermediate POY- Graham Campbell | E39: 25
A40: 2016-07-05 | B40: 1333 | C40: Joint Intermediate POY - George Leigh | E40: 25
A41: 2016-07-05 | B41: 1334 | C41: I.Davies-engraving 3 trophies for POY | E41: 19.5
A42: 2016-07-05 | B42: 1335 | C42: H.Tattersall-repayt of cash provided for Gazette Cup | E42: 9.17
A43: 18/05/2016 | B43: 1336 | C43: EBU Inv 574886-Congress License Fees | E43: 250.92
A44: 18/05/2016 | B44: 1337 | C44: EBU inv 578684-License Fees Gazette=£28.44/League Div 7 last year=£61.20 | E44: 89.64
A45: 18/05/2016 | B45: 1339 | C45: EBU inv.580623-License Fees GP Pairs on 5/03/16 | E45: 370.14
A46: 18/05/2016 | B46: 1340 | C46: EBU inv.580977 - License Fees-Garden Cities final | E46: 260
A47: 21/05/2016 | B47: 1342 | C47: League cup engraving | E47: 50
A48: 22/05/2016 | B48: 1343 | C48: Treasurers Expenses-2015/16-postage | E48: 22.68
A49: 22/05/16 | B49: 1344 | C49: EBU-Garden Cities Final | E49: 260
C50: Total | E50: =SUM(E29:E49) -> 2490.65
B52: b) | C52: Other Creditors
C53: Estimated EBU license fee for League 2015/16 | E53: 489.6
C54: League Overpaymentss-see League calculations sheet | E54: ='League Calculations'!B82 -> 75
C56: Total Creditors | E56: =E50+E53+E54 -> 3055.25
C58: Debtors and Prepayments
B60: a) | C60: Prepaid Room Bookings for 2016-17
C61: Summer Int. Pairs 2015 | D61: 92
C62: GP Pairs 2016 | D62: 50
C63: GP Teams 2016 | D63: =184+50 -> 234
C64: Manchester Congress Deposit | D64: 500
C65: Total Prepayments | D65: =SUM(D61:D64) -> 876
B67: b) | C67: Debtors-League Underpayments-see League calculations sheet | D67: ='League Calculations'!B70 -> 179
C69: Total Debtors and Prepayments | E69: =D65+D67 -> 1055

Sheet Opening Debtors & Creditors
A1: Manchester County Bridge Association
A3: Sundry Creditors as at 31st March 2015
A5: 1236 | B5: Asst Director - J Lewis (GP Pairs) | D5: 65
A7: 1241 | B7: EBU Gazette Cup P2P | D7: 23.8
A9: 1246 | B9: EBU GP Pairs P2P | D9: 362
A11: 1243 | B11: Graham Winn - Handbook Expenses | D11: 212.8
A13: 1244 | B13: K Nelson - Higson Cup & Plate Prizes | D13: 250
A15: 1245 | B15: K Nelson - Higson Cup & Plate - 3 x Directors Fees | D15: 240
A17: 1247 | B17: Jean Keen - Higson Cup Engraving | D17: 6.5
A19: 1248 | B19: Joan Lewis - Higson Cup & Plate Expenses
B20: Dealing | D20: 20
B21: Hand Records | D21: 16
A23: 1250 | B23: MBC - Higson Cup & Plate - Table Hire - 21 tables @ £12 per table | D23: 252
A25: 1252 | B25: Bob Cooke Leaving Present | D25: 50
A27: 1254 | B27: Player of the Year - John Currie | D27: 50
A28: 1253 | B28: Intermediate Player of the Year | D28: 50
A30: 1255 | B30: League Winners Glasses | D30: 750
B32: League Overpayments | D32: 54
B34: EBU Licence Fee - League 2014 - 2015 | D34: 416
A36: 1256 | B36: Treasurer's Expenses | D36: 35
B38: Sundry Creditors Total 2014 - 2015 | D38: =SUM(D5:D37) -> 2853.1
A40: Sundry Debtors as at 31st March 2015
B42: EBU P2P March | D42: 93.52
B43: EBU P2P July 2014 Correction | D43: 22.68
B45: Sundry Debtors Total as at 31st March 2015 | D45: =SUM(D42:D44) -> 116.2
B48: Some provisions were not made - please see details at the top of the sheet on closing balances

Sheet Income & Expenditure (2)
A1: Manchester County Bridge Association
A2: Income & Expenditure as at 31st March 2015
A4: Income | B4: Note | D4: 2015-2016
A6: EBU P2P Clubs | D6: =Income!F176 -> 2383.78
A7: Affiliation Fees | D7: =Income!I176 -> 251
A8: Bridge For All | D8: =Income!N176 -> 63
A9: Manchester League | B9: 1 | D9: ='Notes 2015-16'!E14 -> 1290
A10: Manchester League P2P | B10: 2 | D10: ='Notes 2015-16'!E26 -> -154.6
A11: Higson Memorial Cup & Plate | B11: 3 | D11: ='Notes 2015-16'!E42 -> -342
A12: Higson Memorial Cup & Plate P2P | B12: 4 | D12: ='Notes 2015-16'!E55 -> 165
A13: Extra Players Fees in League & Cup | D13: =Income!K176 -> 350
A14: Gazette Trophy | B14: 5 | D14: ='Notes 2015-16'!E73 -> 45.39
A15: Merville Goldstone Cup (Pachabo Qualifier) | D15: =Income!P184 -> -80
A16: Green Point Pairs | B16: 6 | D16: ='Notes 2015-16'!E93 -> 329.86
A17: Green Point Teams | B17: 7 | D17: ='Notes 2015-16'!E112 -> 312.78
A18: Manchester Congress | B18: 8 | D18: ='Notes 2015-16'!E126 -> -945.37
A19: Ben Franks | B19: 9 | D19: ='Notes 2015-16'!E145 -> 17.84
A20: Summer Intermediate Pairs | B20: 10 | D20: ='Notes 2015-16'!E165 -> 20.3
A21: Autumn Intermediate Pairs | B21: 11 | D21: ='Notes 2015-16'!E187 -> 6.13
A22: Cantor Cup | B22: 12 | D22: ='Notes 2015-16'!E215 -> -8.06
A23: Interest Skipton Building Society 2014 - 2015 | D23: 75
A25: Total Income | D25: =SUM(D6:D24) -> 3780.05
A27: Expenses
A29: Northern Bridge League (NBL) | D29: =Expenses!AH192 -> 300
A30: All Counties Super Final | D30: =Expenses!AI192 -> 180
A31: Derbyshire Friendly | D31: =Expenses!AG192 -> 375.3
A32: Representative Competitions/Matches | B32: 13 | D32: ='Notes 2015-16'!E227 -> 3165.4
A33: Northern Counties Working Group | D33: =Expenses!AT192 -> 60
A34: Youth Budget | B34: 14 | D34: =Expenses!AO192 -> 200
A35: Handbook Expenses | D35: =Expenses!AM192 -> 0
A36: EBU Delegate Expenses | D36: =-Income!Z184 -> 369.9
A37: Trophy Engraving/Trophy Repairs | D37: =Expenses!AR192 -> 12
A38: Printing/Postage/Stationery/Telephone/Travel | D38: =Expenses!AK192 -> 45.58
A39: Retirement Gifts/Presentations/Receptions | B39: 15 | D39: ='Notes 2015-16'!E252 -> 189.5
A40: Bridge stationery & equipment | D40: 0
A41: Equipment Insurance | D41: =Expenses!AL192 -> 71.1
A42: Seminars | B42: 16 | D42: =Expenses!AP192 -> 300
A43: Web Site Costs | D43: =Expenses!AB192 -> 71.84
A44: AGM Expenses | D44: =Expenses!AN192 -> 27.33
A45: Prepaid last year | B45: 17 | D45: ='Closing Debtors & Creditors'!D22 -> -347
A46: Depreciation | D46: 0
A48: Total Expenses | D48: =SUM(D29:D47) -> 5020.95
A50: Surplus/Deficit of Income over Expenditure | D50: =D25-D48 -> -1240.9
A52: Current Assets Balance from last year | D52: ='Balance Sheet'!D19 -> 13642.58
A54: Total Current Assets | D54: =SUM(D50:D53) -> 12401.68

Sheet Notes 2015-16
A1: Manchester County Bridge Association
A2: Notes to the Accounts for the year ended 31st March 2016
A4: Note | E4: 2015/16
A6: 1 | B6: Manchester League 2014 - 2015
B8: Income
B10: 67 Teams @ £20 , plus 1 free | E10: =Income!J176 -> 1340
B12: Engraving League Cup | E12: 50
B14: Profit/Loss | E14: =E10-E12 -> 1290
A16: 2 | B16: Manchester League P2P
B18: Income
B20: 67 Teams * £5 , plus 1 free | E20: =Income!G176 -> 335
B22: Expenses
B24: Estimated P2P charge from EBU, 68 teams) | E24: ='League Calculations'!D44 -> 489.6
B25: see sheet of League Calculations
B26: Profit/Loss | E26: =E20-E24 -> -154.6
A28: 3 | B28: Higson Memorial Cup & Plate
B30: Gross Receipts (33 teams @ £10), plus 2 free | E30: =Income!L176 -> 330
B32: Expenses
B34: Prizes | E34: 250
B35: Director's Fees | E35: 160
B36: Room Hire | E36: 216
B37: Engraving | E37: 0
B38: Duplimating & Copying Hands - ABC | E38: 46
B40: Expenses Total | E40: =SUM(E34:E38) -> 672
B42: Profit/Loss | E42: =E30-E40 -> -342
A44: 4 | B44: Higson Memorial Cup & Plate P2P
B47: Income
B49: 33 Teams x £5 | E49: =Income!H176 -> 165
B51: Expenses
B53: Estimated P2P charge from EBU | E53: 0
B55: Profit/Loss | E55: =E49-E53 -> 165
A57: 5 | B57: Gazette Trophy - Feb.
B59: Gross Receipts | E59: =Income!O156+Income!O151 -> 795
B61: Hire of Hall | E61: =Expenses!O88 -> 138
B62: Tournament Director | E62: 80
B63: Hire of Equipment - Altrincham Bridge Club | E63: 80
B64: Refreshments for Players | E64: =Expenses!O143 -> 287
B65: Paper Plates etc & wine prizes | E65: 34.17
B66: Intermediate Cup | E66: 12
B67: Caretaker gratuity | E67: 10
B68: EBU Masterpoints | E68: 28.44
B69: Prizes | E69: 80
B71: Expenses Total | E71: =SUM(E61:E70) -> 749.61
B73: Net Receipts | E73: =E59-SUM(E61:E70) -> 45.39
A75: 6 | B75: Manchester Green Points Pairs - March
B77: Gross Receipts | E77: =Income!Q164 -> 1782
B78: (98 players + 2 juniors)
B79: Hire of Hall | E79: 184
B80: Director | E80: 177
B81: Assistant Director / Printing | E81: 80
B82: Hire of Tables plus boards - Altrincham Bridge Club | E82: 126
B83: EBU - One Day Event | E83: 370.14
B84: Refreshments for Players | E84: 75
B85: Sandwiches for Director
B86: Paper Cloths
B87: Prizes | E87: 440
B88: Gratuity
B89: Printing, Postage etc
B91: Total Expenses | E91: =SUM(E79:E90) -> 1452.14
B93: Net Receipts | E93: =E77-E91 -> 329.86
A95: 7 | B95: Manchester Green Points Teams - July
B97: Gross Receipts | E97: 1800
B99: Director - D Stevenson | E99: 172.5
B100: Director - J Lewis | E100: 78
B101: Altrincham Bridge Club-equipment & boards | E101: 128
B102: Prizes | E102: 440
B103: Wine Prizes | E103: 48
B104: Hire of Hall | E104: 168
B105: Sandwiches for Directors | E105: 10
B106: Tea, coffee and biscuits | E106: 47
B107: EBU Licence Fee | E107: 375.72
B108: Printing flyers & Posters | E108: 20
B110: Total Expenses | E110: =SUM(E99:E109) -> 1487.22
B112: Net Receipts | E112: =E97-E110 -> 312.78
A114: 8 | B114: Manchester Congress
B116: Gross Receipts
B117: Main event | E117: =Income!S176 -> 4897.25
B118: Players Progress & Kevin Comrie events | E118: =Income!Y176 -> 462
B119: Total Income | E119: =SUM(E117:E118) -> 5359.25
B121: Expenses (See file= Congress 2016))
B122: Main Event | E122: =Income!S180 -> 6064.87
B123: Players Progress & Kevin Comrie events | E123: =Income!Y180 -> 239.75
B124: Total Expenses | E124: =SUM(E122:E123) -> 6304.62
B126: Net Cost | E126: =E119-E124 -> -945.37
A128: 9 | B128: Ben Franks Trophy - Dec.
B130: Gross Receipts - | E130: 498
B131: plus: Affiliation Fee charged at £5
B133: Manchester Bridge Club - 12 tables @ £12 | E133: 126
B134: Manchester Bridge Club - Duplimating - 60 boards @ 20p/board | E134: 25
B135: Prize Money | E135: 180
B136: Tournament Director | E136: 80
B137: Wine | E137: 43
B138: Mince Pies
B139: Publicity & Postage | E139: 7.4
B140: EBU Masterpoints | E140: 14.76
B141: Engraving | E141: 4
B143: Total Expenses | E143: =SUM(E133:E142) -> 480.16
B145: Net Receipts | E145: =E130-E143 -> 17.84
A147: 10 | B147: Summer Intermediate Pairs - June
B149: Gross Receipts | E149: 350
B151: Hire of Hall | E151: 84
B152: Director - Joan Lewis | E152: 45
B153: Hire of Equipment - ABC | E153: 20
B154: Duplimated boards | E154: 12
B155: Refreshments | E155: 13.5
B156: Sweets | E156: 10
B157: Publicity: envelopes and printing
B158: Postage | E158: 3.24
B159: 1st prize - cash | E159: 60
B160: 2nd prize - cash | E160: 40
B161: 3rd - 6th prizes - wine and chocs | E161: 41.96
B163: Total Expenses | E163: =SUM(E151:E162) -> 329.7
B165: Net Receipts | E165: =E149-E163 -> 20.3
A167: 11 | B167: Autumn Intermediate Pairs
B169: Gross Receipts | E169: 378
B171: Hire of Hall | E171: 92
B172: Director - Joan Lewis | E172: 45
B173: Hire of Equipment -ABC | E173: 20
B174: Duplimating boards | E174: 12
B175: Refreshments | E175: 18.75
B176: Sweets | E176: 10
B177: Postage | E177: 2.16
B178: 1st Prizes - £40 | E178: 80
B179: 2nd Prizes - £20 | E179: 40
B180: 3rd Prizes - 4 x wine | E180: 21
B181: 4th prizes - 4 x chocolates | E181: 19.96
B182: Caretaker | E182: 10
B183: Stationery/Printing | E183: 1
B185: Total Expenses | E185: =SUM(E171:E184) -> 371.87
B187: Net Receipts | E187: =E169-E185 -> 6.13
A189: 12 | B189: Cantor Cup - Feb
B191: Receipts
B193: Entrance Fees | E193: 318
B194: Donation from Cantor Family | E194: 150
B196: Gross Receipts | E196: =SUM(E193:E195) -> 468
B198: Hire of MBC Facilities | E198: 144
B199: Director - Joan Lewis | E199: 45
B200: Duplimated Boards | E200: 10
B201: 60 copies hand records | E201: 3
B202: Refreshments - Scones + tea/coffee | E202: 72
B203: Sweets for table | E203: 10
B204: Replica Cups | E204: 11.9
B205: 1st Prize | E205: 100
B206: 2nd / 3rd Prize Wine | E206: 24
B207: 4th Prize - Chocs | E207: 11
B208: Spot Prize | E208: 20
B209: Spot Prize | E209: 10
B210: Printing/Stationery | E210: 2
B211: Postage | E211: 13.16
B213: Total Expenses | E213: =SUM(E198:E212) -> 476.06
B215: Profit/Loss | E215: =E196-E213 -> -8.06
A217: 13 | B217: Expenses for Representative Competitions
B219: Pachabo Cup | E219: =Expenses!AD192 -> 256
B220: Garden Cities - Entry for initial & final | E220: =Expenses!AE192 -> 770
B221: Corwen - Entry | E221: =Expenses!AA192 -> 368
B222: President's Cup - Entry | E222: =Expenses!AF192 -> 205
B223: Tollemache Cup - Entry | E223: =Expenses!Z90 -> 416
B224: Expenses for Tollemache* | E224: =Expenses!Z89+Expenses!Z102+Expenses!Z123+Expenses!Z144+Expenses!Z145 -> 1150.4
B227: Total Expenses | E227: =SUM(E219:E226) -> 3165.4
B229: Tollemache Expenses
B231: Expenses for 8 members of the team @ £50/member | C231: 400
B232: Non-playing captain's expenses | C232: 90.45
B233: Expenses for 8 members of the team in the final @ £75 | C233: 600
B234: Non-playing captain's expenses | C234: 59.95
B236: Total Expenses | C236: =SUM(C231:C235) -> 1150.4
A238: 14 | B238: Youth Budget
B240: Equpment for University Bridge Club | E240: 200
B242: Total | E242: =SUM(E240:E240) -> 200
A244: 15 | B244: Retirement Gifts/Presentations/Receptions
B246: Player of the Year | E246: 50
B247: Joint Intermediate Players of the Year 2 @ £25 | E247: 50
B248: Trophies engraved for POY's | E248: 19.5
B249: ABC caretaker-Xmas gift | E249: 20
B250: Joan Hinchcliffe's Leaving Present | E250: 50
B252: Total | E252: =SUM(E246:E251) -> 189.5
A254: 16 | B254: Seminars
B256: County C Team Seminar
B257: Teaching | E257: 250
B258: Room Hire | E258: 50
B260: Total | E260: =SUM(E256:E259) -> 300
A262: 17 | B262: Prior Year Adjustments
B264: Room bookings prepaid last year | E264: ='Closing Debtors & Creditors'!D10 -> 352
B265: Additional receipts for 2014-15 league | E265: ='Closing Debtors & Creditors'!D15 -> 21
B266: Additional chrge for EBU League license | E266: =-'Closing Debtors & Creditors'!D20 -> -26
B268: Total | E268: =SUM(E264:E267) -> 347
A270: 18 | B270: Prepaid Room Bookings for 2016-17
B272: GP Teams 2015
B273: Summer Int. Pairs 2015 | E273: 92
B274: GP Pairs 2016 | E274: 50
B275: GP Teams 2016 | E275: =184+50 -> 234
B276: Manchester Congress Deposit | E276: 500
B277: Prepayments-Room Bookings | E277: =SUM(E273:E276) -> 876
B279: Debtors-League Under-payments | E279: ='Closing Debtors & Creditors'!D67 -> 179
B281: Total Debtors and Prepayments | E281: =E277+E279 -> 1055
A283: 19 | B283: Creditors
B284: Unpresented Cheques | E284: ='Closing Debtors & Creditors'!E50 -> 2490.65
B285: Estimated EBU license fee for League 2015/16 | E285: 489.6
B286: League Overpaymentss-see League calculations sheet | E286: ='Closing Debtors & Creditors'!E54 -> 75
E287: =SUM(E284:E286) -> 3055.25

Sheet MembersList 2014
A1: MCBA Final Members List 2013 - 2014
A3: P2P Full Members | B3: 1262
A4: P2P Juniors | B4: 21
A5: Direct Members | B5: 71
A6: Direct Juniors | B6: 18
A7: Teachers | B7: 13
A8: Bridge for All | B8: 1
A9: Anonymous Members | B9: 40
A11: Total Members | B11: =SUM(B3:B10) -> 1426

Sheet League Calculations
A2: Opening Balances @1st April 2015
A3: A) A provision was made for £18 underpaid affiliation fees:
A4: Theses were not received and so were written off t the end of the year.
A6: Received at start of year re prior year, but no related op. bal. so added to this year's income:
B7: £
A8: Davenport | B8: 10
A9: City Aces | B9: 11
A10: Total | B10: =SUM(B8:B9) -> 21 | C10: put in prior year corrections
A11: B) Provision was made for Overpayments re prior year: | B11: £
A12: Rejuvenated | B12: 32
A13: Conquering Hearts | B13: 6
A14: Cheshire Cheeses | B14: 10
A15: Chorlton Challengers | B15: 6
A16: Totals | B16: =SUM(B12:B15) -> 54 | C16: these were reversed out in the League overpayments col. On the Income sheet.
A17: C) A provision was made for £416 extimated EBU License Fee
A18: Actual Charges:
A19: EBU inv. 568046, pd with chq. 1286 on 14/11/2015-Divs.1-6 | B19: 380.8
A20: part of EBU inv. 578684, pd with chq. 1337 on 18/05/2016-Div.7 | B20: 61.2 | C20: note: part of chq.payt. of £89.64 included in creditors (unpresented chqs). at yr/end
A21: EBU Licence Fee League 2015 - 2016 | B21: =SUM(B19:B20) -> 442
A22: less;Provision made | B22: -416
B23: =B21+B22 -> 26 | C23: Additional provision added to prior year corrections
A25: Refunds made during the year:
A26: 2015-03-10 | B26: 1278 | C26: League-City Aces refund-H. Weinstock | E26: 24
A27: 2015-03-10 | B27: 1279 | C27: League-Eureka refund-A.Morris | E27: 15
A28: 2015-03-10 | B28: 1280 | C28: League-North Star - refund-M. Hart | E28: 6
D29: Total | E29: =SUM(E26:E28) -> 45
A31: Estimated EBU License Fee for 2015/2016:
A32: Division | B32: Quantity | C32: Price | D32: Ex VAT Total | F32: No. Teams
B33: **
A34: 1 | B34: 440 | C34: 0.17 | D34: =(B34*C34) -> 74.8 | F34: 11 | G34: ** 11 play 10 matches*4people
A35: 2 | B35: 440 | C35: 0.17 | D35: =B35*C35 -> 74.8 | F35: 11
A36: 3 | B36: 360 | C36: 0.17 | D36: 61.2 | F36: 10
A37: 4 | B37: 360 | C37: 0.17 | D37: 61.2 | F37: 10
A38: 5 | B38: 288 | C38: 0.17 | D38: 48.96 | F38: 9
A39: 6 | B39: 288 | C39: 0.17 | D39: 48.96 | F39: 9
A40: 7 | B40: 224 | C40: 0.17 | D40: 38.08 | F40: 8
A42: Net Total | B42: =SUM(B34:B41) -> 2400 | C42: 0.17 | D42: 408
A43: VAT | D43: =D42*0.2 -> 81.6
A44: Total | D44: =SUM(D42:D43) -> 489.6
A46: Example found: EBU Licence Fee Higson Cup & Plate 2013 - 2014
A48: Cup Final | B48: 360 | C48: 0.16 | D48: =B48*C48 -> 57.6 | F48: This is a prior year calculation. Last yeaar no provision was made for this.
A49: Plate Final | B49: 288 | C49: 0.16 | D49: =B49*C49 -> 46.08 | F49: and no charge was made by the EBU. I mentioned this in passing to the EBU
F50: and they didn't seem to know what I was referring to, so I have concluded
A51: Net Total | D51: =SUM(D48:D50) -> 103.68 | F51: that I will not make a provision. The ex-Treasurer and the League Secretary
A52: VAT | D52: =D51*0.2 -> 20.736 | F52: also didn't know what I was talking about!
A53: Total | D53: =SUM(D51:D52) -> 124.416
H56: League & | K56: Totals
A57: League Debtors @31/03/2015 | B57: Totals | D57: EBU P2P | E57: EBU P2P | F57: MCBA | G57: EBU | H57: Cup | I57: Higson | J57: Over
A58: (underpaid us) | D58: League | E58: Cup | F58: Affiliates | G58: League | H58: >4 players | I58: Cup & Plate | J58: Payment
A60: Agamemnon | B60: 5 | H60: 5 | K60: =SUM(D60:J60) -> 5
A61: Petersfield | B61: 36 | D61: 5 | F61: 6 | G61: 20 | H61: 5 | K61: =SUM(D61:J61) -> 36
A62: Imps R Us | B62: 6 | F62: 6 | K62: =SUM(D62:J62) -> 6
A63: Manchester S | B63: 6 | F63: 6 | K63: 6
A64: Double Trouble | B64: 12 | F64: 12 | K64: 12
A65: The Unconventionals | B65: 5 | H65: 5 | K65: 5
A66: Bombay Sapphires | B66: 35 | D66: 5 | G66: 20 | H66: 10 | K66: 35
A67: Adlan | B67: 24 | F67: 24 | K67: 24
A68: Jems | B68: 25 | D68: 5 | G68: 20 | K68: 25
A69: Newcomers | B69: 25 | D69: 5 | G69: 20 | K69: 25
A70: Totals | B70: =SUM(B60:B69) -> 179 | D70: =SUM(D60:D69) -> 20 | E70: 0 | F70: 54 | G70: 80 | H70: 25 | I70: 0 | J70: 0 | K70: 179
A72: League Creditors @31/03/2015 (overpaid us)
A73: Red Bull | B73: 10
A74: Cheshire Cheeses | B74: 4
A75: Sedgeley | B75: 5
A76: New Connections | B76: 10
A77: Rejuvenated | B77: 11
A78: Manchester Cardinals | B78: 5
A79: Astra Zenaca Stars | B79: 10
A80: Four Dummies | B80: 15
A81: Touchung the Void | B81: 5
A82: Totals | B82: =SUM(B73:B81) -> 75
A84: Overpayments Analysis
A85: Underpayments | B85: =B70 -> 179
A86: Overpayments | B86: 75
B87: =B86-B85 -> -104 | C87: net underpayments-agrees to bank and League 2016 spredsheet
A89: Reconciliation to League Spread-sheet
A90: The totals of every column in the League ss agrees to every column total in the cash-book exactly.

Sheet Sheet2
